bitfinex-derivatives/quotes_BNBF0:USTF0_20250523
["timestamp","ask_amount","ask_price","bid_price","bid_amount"]
[1747986040737,0.4639758,684.61,683.64,0.29255163]
[1747986040936,0.96355369,684.63,683.64,0.29255163]
[1747986041139,0.46395328,684.62,683.64,0.29255163]
[1747986041341,0.46388147,684.61,683.64,0.29255163]
[1747986041541,0.96355369,684.63,683.64,0.29255163]
[1747986041840,0.46388189,684.62,683.64,0.29255163]
[1747986042043,0.46388189,684.61,683.64,0.29255163]
[1747986042246,0.96355369,684.63,683.64,0.29255163]
[1747986042444,0.46381902,684.62,683.64,0.29255163]
[1747986042644,0.46381902,684.61,683.64,0.29255163]
[1747986042940,1.09229596,684.66,683.64,0.29255163]
[1747986043145,0.46377142,684.65,683.64,0.29255163]
[1747986043339,0.46377142,684.64,683.64,0.29255163]
[1747986043538,0.46369769,684.63,683.64,0.29255163]
[1747986043738,0.46369769,684.62,683.64,0.29255163]
[1747986043939,1.09229596,684.66,683.64,0.29255163]
[1747986044239,0.46369552,684.65,683.64,0.29255163]
[1747986044442,0.96355369,684.65,683.64,0.29255163]
[1747986044745,0.764,684.64,683.64,0.29255163]
[1747986046448,0.96355369,684.63,683.64,0.29255163]
[1747986058758,0.96355369,684.63,683.7,1.80900454]
[1747986059466,0.96355369,684.63,683.72,0.2925174]
[1747986081692,0.96355369,684.63,683.74,1.80900454]
[1747986081891,0.96355369,684.63,683.76,0.29250029]
[1747986090298,0.96355369,684.89,683.76,0.29250029]
[1747986090498,0.46464619,684.88,683.76,0.29250029]
[1747986090698,0.46464619,684.87,683.76,0.29250029]
[1747986090901,0.46464344,684.86,683.76,0.29250029]
[1747986091094,0.46464344,684.85,683.76,0.29250029]
[1747986091294,0.46464344,684.84,683.76,0.29250029]
[1747986091497,0.46464344,684.83,683.76,0.29250029]
[1747986091700,0.46464344,684.82,683.76,0.29250029]
[1747986091898,0.96355369,684.89,683.76,0.29250029]
[1747986092094,0.46467167,684.88,683.76,0.29250029]
[1747986092299,0.96355369,684.83,683.76,0.29250029]
[1747986092499,0.46467167,684.82,683.76,0.29250029]
[1747986092699,0.96355369,684.83,683.76,0.29250029]
[1747986092899,0.7,684.81,683.76,0.29250029]
[1747986093304,0.96355369,684.8,683.76,0.29250029]
[1747986099607,0.46484596,684.79,683.76,0.29250029]
[1747986099810,0.96355369,684.8,683.76,0.29250029]
[1747986101111,0.46491907,684.79,683.76,0.29250029]
[1747986101305,0.96355369,684.8,683.76,0.29250029]
[1747986101508,0.46491914,684.79,683.76,0.29250029]
[1747986101704,0.4649271,684.78,683.76,0.29250029]
[1747986101907,0.4649271,684.77,683.76,0.29250029]
[1747986102108,0.4649271,684.76,683.76,0.29250029]
[1747986102406,0.4649271,684.75,683.76,0.29250029]
[1747986102707,0.96355369,684.8,683.76,0.29250029]
[1747986102905,0.46499776,684.79,683.76,0.29250029]
[1747986103105,0.46499776,684.78,683.76,0.29250029]
[1747986103309,1.42855145,684.77,683.76,0.29250029]
[1747986103511,0.46505331,684.76,683.76,0.29250029]
[1747986103811,0.46505331,684.75,683.76,0.29250029]
[1747986104107,0.46505331,684.74,683.76,0.29250029]
[1747986104308,0.96355369,684.77,683.76,0.29250029]
[1747986104510,0.46510738,684.76,683.76,0.29250029]
[1747986104710,0.46510738,684.75,683.76,0.29250029]
[1747986104908,0.46510738,684.74,683.76,0.29250029]
[1747986105112,0.96355369,684.77,683.76,0.29250029]
[1747986105310,0.46514369,684.76,683.76,0.29250029]
[1747986105512,0.46514369,684.75,683.76,0.29250029]
[1747986105714,0.46514369,684.74,683.76,0.29250029]
[1747986105915,0.46514322,684.73,683.76,0.29250029]
[1747986106215,0.46514322,684.72,683.76,0.29250029]
[1747986106416,0.46514322,684.71,683.76,0.29250029]
[1747986106615,0.46514322,684.7,683.76,0.29250029]
[1747986106815,0.46514322,684.69,683.76,0.29250029]
[1747986107015,0.46514322,684.68,683.76,0.29250029]
[1747986107216,0.46514322,684.67,683.76,0.29250029]
[1747986107419,0.96355369,684.7,683.76,0.29250029]
[1747986107618,0.46524373,684.69,683.76,0.29250029]
[1747986107913,0.46524373,684.68,683.76,0.29250029]
[1747986108117,0.46524373,684.67,683.76,0.29250029]
[1747986108323,0.46524373,684.66,683.76,0.29250029]
[1747986108513,0.96355369,684.66,683.76,0.29250029]
[1747986108918,0.46527693,684.65,683.76,0.29250029]
[1747986109118,0.96355369,684.66,683.76,0.29250029]
[1747986109317,0.4653013,684.65,683.76,0.29250029]
[1747986109517,0.96355369,684.66,683.76,0.29250029]
[1747986109718,0.46530061,684.65,683.76,0.29250029]
[1747986110015,0.46530709,684.64,683.76,0.29250029]
[1747986110221,0.96355369,684.64,683.76,0.29250029]
[1747986111119,0.46533283,684.63,683.76,0.29250029]
[1747986111320,0.96355369,684.64,683.76,0.29250029]
[1747986111514,1.42890376,684.63,683.76,0.29250029]
[1747986111716,0.96355369,684.63,683.76,0.29250029]
[1747986111914,0.46535333,684.62,683.76,0.29250029]
[1747986112118,0.96355369,684.63,683.76,0.29250029]
[1747986112318,0.46536629,684.62,683.76,0.29250029]
[1747986112514,0.96355369,684.63,683.76,0.29250029]
[1747986113020,0.96355369,684.62,683.76,0.29250029]
[1747986114822,0.96355369,684.61,683.76,0.29250029]
[1747986116420,1.09229596,684.65,683.76,0.29250029]
[1747986116624,0.46526748,684.64,683.76,0.29250029]
[1747986116823,0.46526748,684.63,683.76,0.29250029]
[1747986117026,0.46526748,684.62,683.76,0.29250029]
[1747986117223,0.46526748,684.61,683.76,0.29250029]
[1747986117420,0.46526748,684.6,683.76,0.29250029]
[1747986117625,0.46524399,684.59,683.76,0.29250029]
[1747986117921,1.09229596,684.65,683.76,0.29250029]
[1747986118126,1.42879831,684.64,683.76,0.29250029]
[1747986118326,0.96355369,684.64,683.76,0.29250029]
[1747986119429,1.45639462,684.8,683.76,0.29250029]
[1747986119632,0.4651963,684.79,683.76,0.29250029]
[1747986119831,0.4651963,684.78,683.76,0.29250029]
[1747986120030,0.96937947,684.63,683.76,0.29250029]
[1747986121731,0.96937947,684.62,683.76,0.29250029]
[1747986122333,0.46520363,684.61,683.76,0.29250029]
[1747986122534,0.46521544,684.6,683.76,0.29250029]
[1747986122736,0.96937947,684.62,683.76,0.29250029]
[1747986122938,0.46522027,684.61,683.76,0.29250029]
[1747986123137,0.46522027,684.6,683.76,0.29250029]
[1747986123335,0.46522027,684.59,683.76,0.29250029]
[1747986123535,0.96937947,684.61,683.76,0.29250029]
[1747986123835,0.829,684.59,683.76,0.29250029]
[1747986124437,0.96937947,684.58,683.76,0.29250029]
[1747986126538,0.96937947,684.57,683.76,0.29250029]
[1747986127738,0.96937947,684.56,683.76,0.29250029]
[1747986130437,0.96937947,684.55,683.76,0.29250029]
[1747986132448,0.96937947,684.54,683.76,0.29250029]
[1747986134751,0.96937947,684.53,683.76,0.29250029]
[1747986136353,0.96937947,684.52,683.76,0.29250029]
[1747986137455,0.96937947,684.58,683.76,0.29250029]
[1747986146254,0.96937947,684.66,683.76,0.29250029]
[1747986146461,0.46592026,684.65,683.76,0.29250029]
[1747986146656,0.46592026,684.64,683.76,0.29250029]
[1747986146856,0.46577199,684.63,683.76,0.29250029]
[1747986147057,0.96937947,684.66,683.76,0.29250029]
[1747986147257,0.96937947,684.65,683.76,0.29250029]
[1747986147453,0.46583728,684.64,683.76,0.29250029]
[1747986147654,0.46583728,684.63,683.76,0.29250029]
[1747986147859,1.62037947,684.65,683.76,0.29250029]
[1747986148059,0.46583824,684.64,683.76,0.29250029]
[1747986148358,0.46583824,684.63,683.76,0.29250029]
[1747986148559,0.96937947,684.63,683.76,0.29250029]
[1747986150260,0.96937947,684.62,683.76,0.29250029]
[1747986151664,0.96937947,684.61,683.76,0.29250029]
[1747986152663,0.96937947,684.6,683.76,0.29250029]
[1747986154063,0.96937947,684.59,683.76,0.29250029]
[1747986155164,0.96937947,684.58,683.76,0.29250029]
[1747986156867,0.96937947,684.57,683.76,0.29250029]
[1747986158168,0.96937947,684.56,683.76,0.29250029]
[1747986159868,0.96937947,684.55,683.76,0.29250029]
[1747986161767,0.96937947,684.54,683.76,0.29250029]
[1747986162663,0.46683181,684.53,683.76,0.29250029]
[1747986162968,0.46683181,684.52,683.76,0.29250029]
[1747986163169,0.96937947,684.54,683.76,0.29250029]
[1747986163170,0.46690507,684.51,683.76,0.29250029]
[1747986163368,0.96937947,684.54,683.76,0.29250029]
[1747986163667,0.96937947,684.5,683.76,0.29250029]
[1747986164467,0.96937947,684.49,683.76,0.29250029]
[1747986165969,0.46707176,684.48,683.76,0.29250029]
[1747986166269,0.46707176,684.47,683.76,0.29250029]
[1747986166973,0.96937947,684.48,683.76,0.29250029]
[1747986167269,0.46708134,684.47,683.76,0.29250029]
[1747986167469,0.46708134,684.46,683.76,0.29250029]
[1747986167670,0.96937947,684.48,683.76,0.29250029]
[1747986167970,0.46705278,684.47,683.76,0.29250029]
[1747986168172,0.96937947,684.48,683.76,0.29250029]
[1747986168370,1.43640434,684.47,683.76,0.29250029]
[1747986168570,0.96937947,684.47,683.76,0.29250029]
[1747986169272,0.96937947,684.46,683.76,0.29250029]
[1747986170872,0.96937947,684.45,683.76,0.29250029]
[1747986172472,0.96937947,684.44,683.76,0.29250029]
[1747986174068,0.96937947,684.43,683.76,0.29250029]
[1747986175872,0.96937947,684.42,683.76,0.29250029]
[1747986176873,0.96937947,684.49,683.76,0.29250029]
[1747986178472,0.96937947,684.48,683.76,0.29250029]
[1747986180171,0.96937947,684.47,683.76,0.29250029]
[1747986181473,0.96937947,684.46,683.76,0.29250029]
[1747986182573,0.96937947,684.45,683.76,0.29250029]
[1747986184675,0.96937947,684.44,683.76,0.29250029]
[1747986185777,0.96937947,684.43,683.76,0.29250029]
[1747986187181,0.96937947,684.6,683.76,0.29250029]
[1747986187380,0.46570051,684.59,683.76,0.29250029]
[1747986187680,0.96937947,684.6,683.76,0.29250029]
[1747986189481,1.09243289,684.61,683.76,0.29250029]
[1747986190983,0.96937947,684.64,683.76,0.29250029]
[1747986194287,0.96937947,684.83,683.76,0.29250029]
[1747986194487,0.45346701,684.82,683.76,0.29250029]
[1747986194780,0.96937947,684.83,683.76,0.29250029]
[1747986195086,0.45346624,684.82,683.76,0.29250029]
[1747986195387,0.96937947,684.83,683.76,0.29250029]
[1747986195388,0.45346624,684.81,683.76,0.29250029]
[1747986195588,0.96937947,684.83,683.76,0.29250029]
[1747986195790,0.4533965,684.82,683.76,0.29250029]
[1747986195983,0.4533965,684.81,683.76,0.29250029]
[1747986196289,1.91337947,684.82,683.76,0.29250029]
[1747986197990,0.96937947,684.81,683.76,0.29250029]
[1747986199087,0.96937947,684.8,683.76,0.29250029]
[1747986200393,0.96937947,684.81,683.76,0.29250029]
[1747986202398,0.944,684.82,683.76,0.29250029]
[1747986202399,0.96937947,684.8,683.76,0.29250029]
[1747986204300,0.96937947,684.79,683.8,1.80900454]
[1747986204802,0.96937947,684.79,683.82,0.29247462]
[1747986206103,0.96937947,684.78,683.82,0.29247462]
[1747986207705,0.96937947,684.77,683.82,0.29247462]
[1747986209103,0.96937947,684.76,683.82,0.29247462]
[1747986210206,0.96937947,684.75,683.82,0.29247462]
[1747986211405,0.96937947,684.74,683.82,0.29247462]
[1747986213407,0.96937947,684.73,683.82,0.29247462]
[1747986214708,0.96937947,684.72,683.82,0.29247462]
[1747986216407,0.96937947,684.71,683.82,0.29247462]
[1747986218209,0.96937947,684.7,683.82,0.29247462]
[1747986220311,0.96937947,684.69,683.82,0.29247462]
[1747986221907,0.96937947,684.68,683.82,0.29247462]
[1747986223313,0.96937947,684.67,683.82,0.29247462]
[1747986224611,0.96937947,684.66,683.82,0.29247462]
[1747986226614,0.96937947,684.65,683.82,0.29247462]
[1747986227718,0.45281252,684.64,683.82,0.29247462]
[1747986228020,1.42220284,684.63,683.82,0.29247462]
[1747986228221,0.45282168,684.62,683.82,0.29247462]
[1747986228419,0.45282168,684.61,683.82,0.29247462]
[1747986228621,0.96937947,684.63,683.82,0.29247462]
[1747986228814,0.45328837,684.62,683.82,0.29247462]
[1747986229122,0.45328837,684.61,683.82,0.29247462]
[1747986229320,0.96937947,684.62,683.82,0.29247462]
[1747986229520,0.45328535,684.61,683.82,0.29247462]
[1747986229719,0.96937947,684.62,683.82,0.29247462]
[1747986229916,0.45413205,684.61,683.82,0.29247462]
[1747986230115,0.96937947,684.6,683.82,0.29247462]
[1747986231319,0.96937947,684.59,683.82,0.29247462]
[1747986232816,1.09243289,684.63,683.82,0.29247462]
[1747986232817,0.96937947,684.58,683.82,0.29247462]
[1747986234418,0.96937947,684.57,683.82,0.29247462]
[1747986235921,0.96937947,684.63,683.82,0.29247462]
[1747986236121,0.45412935,684.62,683.82,0.29247462]
[1747986236322,0.45412935,684.61,683.82,0.29247462]
[1747986236522,0.96937947,684.63,683.82,0.29247462]
[1747986236724,0.4541302,684.62,683.82,0.29247462]
[1747986236922,0.4541302,684.61,683.82,0.29247462]
[1747986237123,0.96937947,684.63,683.82,0.29247462]
[1747986237324,0.45415879,684.62,683.82,0.29247462]
[1747986237519,0.45412777,684.61,683.82,0.29247462]
[1747986237718,0.96937947,684.62,683.82,0.29247462]
[1747986238125,0.45412766,684.61,683.82,0.29247462]
[1747986238319,0.96937947,684.62,683.82,0.29247462]
[1747986238521,0.45412995,684.61,683.82,0.29247462]
[1747986238721,0.96937947,684.62,683.82,0.29247462]
[1747986238922,0.45413087,684.61,683.82,0.29247462]
[1747986239121,0.96937947,684.64,683.82,0.29247462]
[1747986239319,0.45415916,684.63,683.82,0.29247462]
[1747986239524,0.45415916,684.62,683.82,0.29247462]
[1747986239822,0.45415916,684.61,683.82,0.29247462]
[1747986240023,0.96937947,684.64,683.82,0.29247462]
[1747986240220,0.45413076,684.63,683.82,0.29247462]
[1747986240425,0.96937947,684.64,683.82,0.29247462]
[1747986240829,0.96937947,684.61,683.82,0.29247462]
[1747986241629,1.09243289,684.64,683.82,0.29247462]
[1747986242129,0.96937947,684.63,683.82,0.29247462]
[1747986242428,0.96937947,684.72,683.82,0.29247462]
[1747986242727,0.45410553,684.71,683.82,0.29247462]
[1747986242928,0.45410553,684.7,683.82,0.29247462]
[1747986243129,0.45410553,684.69,683.82,0.29247462]
[1747986243329,0.45410553,684.68,683.82,0.29247462]
[1747986243530,0.96937947,684.69,683.82,0.29247462]
[1747986244131,0.96937947,684.7,683.82,0.29247462]
[1747986244331,0.45411478,684.69,683.82,0.29247462]
[1747986244531,0.96937947,684.7,683.82,0.29247462]
[1747986244729,0.45412818,684.69,683.82,0.29247462]
[1747986244928,1.54656117,684.68,683.82,0.29247462]
[1747986245130,1.09243289,684.68,683.82,0.29247462]
[1747986245429,0.96937947,684.67,683.82,0.29247462]
[1747986246232,1.09243289,684.68,683.82,0.29247462]
[1747986247632,0.96937947,684.67,683.82,0.29247462]
[1747986248636,1.09243289,684.82,683.82,0.29247462]
[1747986248831,0.45410552,684.81,683.82,0.29247462]
[1747986249032,0.45410552,684.8,683.82,0.29247462]
[1747986249237,1.09243289,684.82,683.82,0.29247462]
[1747986249436,0.45409709,684.81,683.82,0.29247462]
[1747986249737,0.45409709,684.8,683.82,0.29247462]
[1747986250232,0.45411556,685.14,683.82,0.29247462]
[1747986250435,1.43216414,685.13,683.82,0.29247462]
[1747986250635,0.45411556,685.12,683.82,0.29247462]
[1747986250933,1.58604858,685.13,683.82,0.29247462]
[1747986251132,0.45412274,685.12,683.82,0.29247462]
[1747986251337,0.45412274,685.11,683.82,0.29247462]
[1747986251539,0.45412274,685.1,683.82,0.29247462]
[1747986251738,0.45412274,685.09,683.82,0.29247462]
[1747986251938,0.45412274,685.08,683.82,0.29247462]
[1747986252132,0.45412274,685.07,683.82,0.29247462]
[1747986252337,0.45412274,685.06,683.82,0.29247462]
[1747986252537,0.45412274,685.05,683.82,0.29247462]
[1747986252837,0.45412274,685.04,683.82,0.29247462]
[1747986253031,0.45412274,685.03,683.82,0.29247462]
[1747986253235,0.45412274,685.02,683.82,0.29247462]
[1747986253433,0.45412274,685.01,683.82,0.29247462]
[1747986253639,1.09116543,684.8,683.82,0.29247462]
[1747986254842,0.97804858,684.79,683.82,0.29247462]
[1747986255842,0.97804858,684.78,683.82,0.29247462]
[1747986256642,0.97804858,684.77,683.82,0.29247462]
[1747986257939,0.97804858,684.76,683.82,0.29247462]
[1747986258845,0.97804858,684.75,683.82,0.29247462]
[1747986260243,0.97804858,684.74,683.82,0.29247462]
[1747986261848,0.97804858,684.73,683.82,0.29247462]
[1747986263546,0.97804858,684.72,683.82,0.29247462]
[1747986265449,0.97804858,684.71,683.82,0.29247462]
[1747986267245,0.97804858,684.7,683.82,0.29247462]
[1747986268850,0.97804858,684.69,683.82,0.29247462]
[1747986270355,0.97804858,684.68,683.82,0.29247462]
[1747986271758,0.97804858,684.67,683.82,0.29247462]
[1747986272953,0.97804858,684.66,683.82,0.29247462]
[1747986274460,0.97804858,684.65,683.82,0.29247462]
[1747986276261,0.97804858,684.64,683.82,0.29247462]
[1747986277659,1.09116543,684.9,683.82,0.29247462]
[1747986279163,1.09116543,685.08,683.85,1.81358542]
[1747986279362,0.45395286,685.07,683.87,0.29245324]
[1747986279563,0.45394817,685.06,683.87,0.29245324]
[1747986279764,0.45394817,685.05,683.87,0.29245324]
[1747986279962,0.45394817,685.04,683.87,0.29245324]
[1747986280262,0.97685463,685.03,683.87,0.29245324]
[1747986282467,0.97685463,685.02,683.87,0.29245324]
[1747986283369,0.97685463,685.01,683.87,0.29245324]
[1747986284868,0.97685463,685.0,683.87,0.29245324]
[1747986286468,0.97685463,684.99,683.87,0.29245324]
[1747986288471,0.97685463,684.98,683.87,0.29245324]
[1747986289967,0.97685463,684.97,683.87,0.29245324]
[1747986291775,0.97685463,684.96,683.87,0.29245324]
[1747986293175,0.97685463,684.95,683.87,0.29245324]
[1747986294679,1.97285463,684.94,683.87,0.29245324]
[1747986295774,0.97685463,684.93,683.87,0.29245324]
[1747986298282,0.97685463,684.92,683.87,0.29245324]
[1747986299681,0.97685463,684.91,683.87,0.29245324]
[1747986300483,0.45403426,684.9,683.87,0.29245324]
[1747986300678,0.45403426,684.89,683.87,0.29245324]
[1747986300881,0.45403426,684.88,683.87,0.29245324]
[1747986301084,0.45403426,684.87,683.87,0.29245324]
[1747986301284,0.45403426,684.86,683.87,0.29245324]
[1747986301585,0.97685463,684.89,683.87,0.29245324]
[1747986301885,0.97685463,684.88,683.87,0.29245324]
[1747986302887,0.97685463,684.89,683.87,0.29245324]
[1747986303988,0.97685463,684.93,683.87,0.29245324]
[1747986305994,0.97685463,684.93,683.97,1.81358542]
[1747986306190,0.97685463,684.93,683.98,0.29240621]
[1747986308795,0.45430948,684.92,683.98,0.29240621]
[1747986308989,0.45430948,684.91,683.98,0.29240621]
[1747986309194,0.45433955,684.9,683.98,0.29240621]
[1747986309392,0.45433955,684.89,683.98,0.29240621]
[1747986309591,0.45433955,684.88,683.98,0.29240621]
[1747986309792,0.45433955,684.87,683.98,0.29240621]
[1747986309989,0.45433955,684.86,683.98,0.29240621]
[1747986310193,0.97685463,684.87,683.98,0.29240621]
[1747986310395,0.45434492,684.86,683.98,0.29240621]
[1747986310596,0.97685463,684.87,683.98,0.29240621]
[1747986310797,0.97685463,684.85,683.98,0.29240621]
[1747986311192,0.45436374,684.84,683.98,0.29240621]
[1747986311389,0.45436374,684.83,683.98,0.29240621]
[1747986311595,0.45436374,684.82,683.98,0.29240621]
[1747986311795,0.97685463,684.81,683.98,0.29240621]
[1747986313194,0.45457252,684.8,683.98,0.29240621]
[1747986313398,0.97685463,684.81,683.98,0.29240621]
[1747986313600,0.45457556,684.8,683.98,0.29240621]
[1747986313804,0.97685463,684.79,683.98,0.29240621]
[1747986314801,0.97685463,684.78,683.98,0.29240621]
[1747986315102,0.45450589,684.77,683.98,0.29240621]
[1747986315301,0.45450589,684.76,683.98,0.29240621]
[1747986315501,1.09116543,684.67,683.98,0.29240621]
[1747986315703,0.45450589,684.66,683.98,0.29240621]
[1747986315997,1.43136052,684.65,683.98,0.29240621]
[1747986316201,0.45450589,684.64,683.98,0.29240621]
[1747986316500,0.97685463,684.65,683.98,0.29240621]
[1747986316901,0.97685463,684.64,683.98,0.29240621]
[1747986318099,0.97685463,684.67,683.98,0.29240621]
[1747986319700,0.97685463,684.66,683.98,0.29240621]
[1747986321003,0.45371299,684.65,683.98,0.29240621]
[1747986321202,0.45371299,684.64,683.98,0.29240621]
[1747986321404,0.45371299,684.63,683.98,0.29240621]
[1747986321598,0.97685463,684.65,683.98,0.29240621]
[1747986323405,1.09116543,684.69,683.98,0.29240621]
[1747986323605,0.45324236,684.68,683.98,0.29240621]
[1747986323800,1.09116543,684.69,683.98,0.29240621]
[1747986324706,0.97685463,684.68,683.98,0.29240621]
[1747986325908,0.97685463,684.67,683.98,0.29240621]
[1747986327410,0.97685463,684.66,683.98,0.29240621]
[1747986329609,0.97685463,684.65,683.98,0.29240621]
[1747986330906,0.97685463,684.64,683.98,0.29240621]
[1747986332011,0.97685463,684.63,683.98,0.29240621]
[1747986333916,0.97685463,684.63,683.5,1.81358542]
[1747986334117,0.97685463,684.63,683.51,0.29260727]
[1747986334416,0.97685463,684.62,683.53,1.81358542]
[1747986334614,0.97685463,684.62,683.54,0.29259443]
[1747986335617,0.97685463,684.61,683.54,0.29259443]
[1747986337319,0.97685463,684.6,683.54,0.29259443]
[1747986337913,0.97685463,684.59,683.54,0.29259443]
[1747986338520,0.924,684.58,683.54,0.29259443]
[1747986339815,0.97685463,684.57,683.54,0.29259443]
[1747986341227,0.97685463,684.56,683.54,0.29259443]
[1747986342926,0.97685463,684.55,683.54,0.29259443]
[1747986344621,0.97685463,684.54,683.54,0.29259443]
[1747986345628,0.97685463,684.53,683.54,0.29259443]
[1747986348035,0.97685463,684.52,683.54,0.29259443]
[1747986349531,0.97685463,684.51,683.54,0.29259443]
[1747986350934,0.97685463,684.5,683.54,0.29259443]
[1747986352832,0.97685463,684.49,683.54,0.29259443]
[1747986354134,0.97685463,684.48,683.54,0.29259443]
[1747986355836,0.97685463,684.47,683.54,0.29259443]
[1747986356936,0.97685463,684.46,683.54,0.29259443]
[1747986359237,0.97685463,684.45,683.54,0.29259443]
[1747986360841,0.97685463,684.44,683.54,0.29259443]
[1747986361539,0.97685463,684.43,683.54,0.29259443]
[1747986362539,0.97685463,684.42,683.54,0.29259443]
[1747986364144,0.97685463,684.41,683.54,0.29259443]
[1747986365342,0.97685463,684.4,683.54,0.29259443]
[1747986366340,1.09116543,684.54,683.54,0.29259443]
[1747986366541,0.45320583,684.53,683.54,0.29259443]
[1747986366844,0.453191,684.52,683.54,0.29259443]
[1747986367046,0.453191,684.51,683.54,0.29259443]
[1747986367246,0.453191,684.5,683.54,0.29259443]
[1747986367448,1.43004563,684.49,683.54,0.29259443]
[1747986367647,0.453191,684.48,683.54,0.29259443]
[1747986367946,0.45324876,684.47,683.54,0.29259443]
[1747986368146,0.45324876,684.46,683.54,0.29259443]
[1747986368352,0.45324876,684.45,683.54,0.29259443]
[1747986368547,0.45324876,684.44,683.54,0.29259443]
[1747986368752,0.45324876,684.43,683.54,0.29259443]
[1747986369052,0.97685463,684.49,683.54,0.29259443]
[1747986369253,0.97685463,684.43,683.54,0.29259443]
[1747986370254,0.45349509,684.42,683.54,0.29259443]
[1747986370452,0.97685463,684.43,683.54,0.29259443]
[1747986370651,0.4534284,684.42,683.54,0.29259443]
[1747986370849,0.97685463,684.41,683.54,0.29259443]
[1747986372053,0.45345666,684.4,683.54,0.29259443]
[1747986372353,0.45345666,684.39,683.54,0.29259443]
[1747986372553,0.97685463,684.41,683.54,0.29259443]
[1747986372756,1.09116543,684.38,683.54,0.29259443]
[1747986374356,0.97685463,684.37,683.54,0.29259443]
[1747986377956,0.97685463,684.36,683.54,0.29259443]
[1747986379557,0.97685463,684.35,683.54,0.29259443]
[1747986381555,0.97685463,684.47,683.54,0.29259443]
[1747986381760,0.45311319,684.46,683.54,0.29259443]
[1747986381960,0.45311319,684.45,683.54,0.29259443]
[1747986382162,0.45311319,684.44,683.54,0.29259443]
[1747986382353,0.45311319,684.43,683.54,0.29259443]
[1747986382553,0.45311319,684.42,683.54,0.29259443]
[1747986382758,0.97685463,684.47,683.54,0.29259443]
[1747986382955,0.97685463,684.41,683.54,0.29259443]
[1747986384362,0.97685463,684.4,683.54,0.29259443]
[1747986385662,0.97685463,684.43,683.54,0.29259443]
[1747986387463,1.09116543,684.44,683.54,0.29259443]
[1747986387763,0.45307071,684.43,683.54,0.29259443]
[1747986387957,1.09116543,684.44,683.54,0.29259443]
[1747986388160,0.45307068,684.43,683.54,0.29259443]
[1747986388358,1.09116543,684.44,683.54,0.29259443]
[1747986388560,0.45306193,684.43,683.54,0.29259443]
[1747986388758,1.09116543,684.41,683.54,0.29259443]
[1747986389863,0.97685463,684.4,683.54,0.29259443]
[1747986391766,1.09116543,684.43,683.54,0.29259443]
[1747986393269,0.97685463,684.42,683.54,0.29259443]
[1747986395273,1.09116543,684.43,683.54,0.29259443]
[1747986395274,0.97685463,684.41,683.54,0.29259443]
[1747986396772,0.97685463,684.4,683.54,0.29259443]
[1747986398371,0.968,684.39,683.54,0.29259443]
[1747986399072,1.94485463,684.39,683.54,0.29259443]
[1747986400472,0.97685463,684.38,683.54,0.29259443]
[1747986407481,0.97685463,684.37,683.54,0.29259443]
[1747986408779,0.97685463,684.38,683.54,0.29259443]
[1747986410581,0.97685463,684.37,683.54,0.29259443]
[1747986412380,0.97685463,684.36,683.54,0.29259443]
[1747986414084,0.97685463,684.35,683.54,0.29259443]
[1747986415086,0.97685463,684.34,683.54,0.29259443]
[1747986416288,0.97685463,684.33,683.54,0.29259443]
[1747986417088,0.97685463,684.32,683.54,0.29259443]
[1747986417987,0.97685463,684.31,683.54,0.29259443]
[1747986418788,0.97685463,684.3,683.54,0.29259443]
[1747986420290,0.97685463,684.29,683.54,0.29259443]
[1747986421590,0.97685463,684.28,683.54,0.29259443]
[1747986422790,0.97685463,684.27,683.54,0.29259443]
[1747986424591,0.97685463,684.26,683.54,0.29259443]
[1747986425492,0.97685463,684.25,683.54,0.29259443]
[1747986427392,0.97685463,684.24,683.54,0.29259443]
[1747986427692,0.959,684.23,683.54,0.29259443]
[1747986428888,0.97685463,684.22,683.54,0.29259443]
[1747986430894,0.97685463,684.21,683.54,0.29259443]
[1747986432189,0.97685463,684.2,683.54,0.29259443]
[1747986433795,0.97685463,684.19,683.54,0.29259443]
[1747986435596,0.97685463,684.18,683.54,0.29259443]
[1747986436591,0.97685463,684.17,683.54,0.29259443]
[1747986438498,0.97685463,684.16,683.54,0.29259443]
[1747986441102,0.97685463,684.15,683.54,0.29259443]
[1747986442302,0.97685463,684.22,683.54,0.29259443]
[1747986444607,0.97685463,684.21,683.54,0.29259443]
[1747986446007,0.97685463,684.2,683.54,0.29259443]
[1747986447408,0.97685463,684.19,683.54,0.29259443]
[1747986449308,0.97685463,684.22,683.54,0.29259443]
[1747986450912,0.97685463,684.21,683.54,0.29259443]
[1747986452514,0.97685463,684.2,683.54,0.29259443]
[1747986454510,0.97685463,684.19,683.54,0.29259443]
[1747986456218,0.97685463,684.18,683.54,0.29259443]
[1747986458020,0.97685463,684.17,683.54,0.29259443]
[1747986459422,0.97685463,684.22,683.54,0.29259443]
[1747986461623,0.97685463,684.21,683.54,0.29259443]
[1747986462927,0.97685463,684.2,683.54,0.29259443]
[1747986464728,0.97685463,684.19,683.54,0.29259443]
[1747986466228,0.97685463,684.26,683.54,0.29259443]
[1747986466424,0.45302316,684.25,683.54,0.29259443]
[1747986466623,0.97685463,684.26,683.54,0.29259443]
[1747986466824,0.45302817,684.25,683.54,0.29259443]
[1747986467029,0.97685463,684.26,683.54,0.29259443]
[1747986467226,0.45304492,684.25,683.54,0.29259443]